[Event "Titled Tuesday Blitz February 22 Early 2022"]
[White "Tillis., Bryan"]
[Black "Vusatiuk, Vladimir"]
[WhiteFideId "2059053"]
[BlackFideId "14118610"]
[WhiteElo "2295"]
[BlackElo "2157"]
[Result "1/2-1/2"]
[Round "07"]
[TimeControl "180+1"]
[Date "2022.02.22"]
[WhiteClock "0:00:16"]
[BlackClock "0:00:13"]

1. c4 {[%clk 0:03:00]}  Nf6 {[%clk 0:02:59]} 2. Nf3 {[%clk 0:03:01]}  e6 {[%clk 0:02:59]} 3. g3 {[%clk 0:03:01]}  d5 {[%clk 0:02:59]} 4. Bg2 {[%clk 0:03:01]}  Be7 {[%clk 0:02:59]} 5. O-O {[%clk 0:03:02]}  O-O {[%clk 0:03:00]} 6. d4 {[%clk 0:03:02]}  dxc4 {[%clk 0:03:00]} 7. Ne5 {[%clk 0:03:02]}  Nc6 {[%clk 0:03:00]} 8. Bxc6 {[%clk 0:03:02]}  bxc6 {[%clk 0:03:01]} 9. Nxc6 {[%clk 0:03:03]}  Qe8 {[%clk 0:03:02]} 10. Nxe7+ {[%clk 0:03:03]}  Qxe7 {[%clk 0:03:03]} 11. b3 {[%clk 0:03:04]}  c5 {[%clk 0:02:46]} 12. Ba3 {[%clk 0:03:00]}  cxb3 {[%clk 0:02:25]} 13. Qxb3 {[%clk 0:02:50]}  c4 {[%clk 0:02:25]} 14. Bxe7 {[%clk 0:02:46]}  cxb3 {[%clk 0:02:22]} 15. axb3 {[%clk 0:02:41]}  Re8 {[%clk 0:02:20]} 16. Bxf6 {[%clk 0:02:37]}  gxf6 {[%clk 0:02:21]} 17. Nd2 {[%clk 0:02:28]}  Bb7 {[%clk 0:02:14]} 18. Rfc1 {[%clk 0:02:16]}  Red8 {[%clk 0:02:13]} 19. e3 {[%clk 0:01:58]}  Rd7 {[%clk 0:01:53]} 20. Nc4 {[%clk 0:01:48]}  Bf3 {[%clk 0:01:48]} 21. Ra3 {[%clk 0:01:39]}  Rb8 {[%clk 0:01:29]} 22. h3 {[%clk 0:01:30]}  Rdb7 {[%clk 0:01:26]} 23. Nd2 {[%clk 0:01:26]}  Bd5 {[%clk 0:01:20]} 24. Rca1 {[%clk 0:01:16]}  Bxb3 {[%clk 0:01:09]} 25. Nxb3 {[%clk 0:01:14]}  Rxb3 {[%clk 0:01:10]} 26. Rxa7 {[%clk 0:01:14]}  f5 {[%clk 0:01:03]} 27. Rc7 {[%clk 0:01:05]}  Rb1+ {[%clk 0:01:03]} 28. Rxb1 {[%clk 0:01:05]}  Rxb1+ {[%clk 0:01:03]} 29. Kg2 {[%clk 0:01:06]}  Kg7 {[%clk 0:01:00]} 30. Rc8 {[%clk 0:01:05]}  h5 {[%clk 0:00:56]} 31. Ra8 {[%clk 0:01:02]}  Kg6 {[%clk 0:00:49]} 32. Rg8+ {[%clk 0:01:01]}  Kh7 {[%clk 0:00:48]} 33. Rd8 {[%clk 0:01:01]}  Kg7 {[%clk 0:00:48]} 34. h4 {[%clk 0:00:57]}  Rd1 {[%clk 0:00:46]} 35. Kf3 {[%clk 0:00:57]}  Rd2 {[%clk 0:00:43]} 36. Ra8 {[%clk 0:00:54]}  Kf6 {[%clk 0:00:38]} 37. Rg8 {[%clk 0:00:51]}  Ke7 {[%clk 0:00:14]} 38. Rg5 {[%clk 0:00:49]}  Kf8 {[%clk 0:00:13]} 39. Rxh5 {[%clk 0:00:47]}  Kg7 {[%clk 0:00:13]} 40. Rg5+ {[%clk 0:00:46]}  Kh7 {[%clk 0:00:13]} 41. g4 {[%clk 0:00:41]}  f6 {[%clk 0:00:11]} 42. Rh5+ {[%clk 0:00:38]}  Kg6 {[%clk 0:00:11]} 43. Rh8 {[%clk 0:00:26]}  fxg4+ {[%clk 0:00:11]} 44. Kg3 {[%clk 0:00:20]}  f5 {[%clk 0:00:12]} 45. Re8 {[%clk 0:00:16]}  Kf6 {[%clk 0:00:12]} 46. Kg2 {[%clk 0:00:12]}  Kf7 {[%clk 0:00:11]} 47. Ra8 {[%clk 0:00:10]}  Kf6 {[%clk 0:00:11]} 48. Rg8 {[%clk 0:00:09]}  Kf7 {[%clk 0:00:11]} 49. Rb8 {[%clk 0:00:09]}  Kf6 {[%clk 0:00:11]} 50. Rb5 {[%clk 0:00:08]}  Rc2 {[%clk 0:00:10]} 51. Rb6 {[%clk 0:00:07]}  Kf7 {[%clk 0:00:10]} 52. Ra6 {[%clk 0:00:07]}  Rd2 {[%clk 0:00:11]} 53. Kg3 {[%clk 0:00:06]}  Kf6 {[%clk 0:00:10]} 54. Ra7 {[%clk 0:00:06]}  Kg6 {[%clk 0:00:10]} 55. Re7 {[%clk 0:00:05]}  Kf6 {[%clk 0:00:11]} 56. Re8 {[%clk 0:00:06]}  Kf7 {[%clk 0:00:11]} 57. Rd8 {[%clk 0:00:06]}  Ke7 {[%clk 0:00:11]} 58. Rb8 {[%clk 0:00:06]}  Kf6 {[%clk 0:00:11]} 59. Rb7 {[%clk 0:00:06]}  Kg6 {[%clk 0:00:11]} 60. Rb1 {[%clk 0:00:06]}  Kf6 {[%clk 0:00:12]} 61. Rh1 {[%clk 0:00:07]}  Kg6 {[%clk 0:00:12]} 62. Kg2 {[%clk 0:00:07]}  Kh5 {[%clk 0:00:12]} 63. Kg3 {[%clk 0:00:07]}  Kg6 {[%clk 0:00:12]} 64. Rb1 {[%clk 0:00:07]}  Kf6 {[%clk 0:00:12]} 65. Ra1 {[%clk 0:00:08]}  Kf7 {[%clk 0:00:13]} 66. Ra6 {[%clk 0:00:08]}  Kf6 {[%clk 0:00:13]} 67. Rb6 {[%clk 0:00:09]}  Rd1 {[%clk 0:00:13]} 68. Rb8 {[%clk 0:00:09]}  Rg1+ {[%clk 0:00:13]} 69. Kh2 {[%clk 0:00:10]}  Rf1 {[%clk 0:00:12]} 70. Kg2 {[%clk 0:00:10]}  Rd1 {[%clk 0:00:13]} 71. Rf8+ {[%clk 0:00:10]}  Kg7 {[%clk 0:00:13]} 72. Rd8 {[%clk 0:00:10]}  Kf7 {[%clk 0:00:13]} 73. Rd7+ {[%clk 0:00:11]}  Kf6 {[%clk 0:00:13]} 74. Rh7 {[%clk 0:00:10]}  Rd2 {[%clk 0:00:13]} 75. Rh6+ {[%clk 0:00:10]}  Kf7 {[%clk 0:00:14]} 76. Rh7+ {[%clk 0:00:10]}  Kg6 {[%clk 0:00:14]} 77. Rh8 {[%clk 0:00:09]}  Kg7 {[%clk 0:00:14]} 78. Ra8 {[%clk 0:00:09]}  Kf6 {[%clk 0:00:14]} 79. Ra7 {[%clk 0:00:09]}  Kg6 {[%clk 0:00:14]} 80. Ra6 {[%clk 0:00:09]}  Kf6 {[%clk 0:00:14]} 81. Kf1 {[%clk 0:00:08]}  Rd1+ {[%clk 0:00:14]} 82. Ke2 {[%clk 0:00:07]}  Rh1 {[%clk 0:00:14]} 83. d5 {[%clk 0:00:07]}  Rxh4 {[%clk 0:00:13]} 84. Rxe6+ {[%clk 0:00:07]}  Kf7 {[%clk 0:00:14]} 85. Re5 {[%clk 0:00:07]}  Kf6 {[%clk 0:00:14]} 86. Re6+ {[%clk 0:00:08]}  Kf7 {[%clk 0:00:14]} 87. Kf1 {[%clk 0:00:08]}  Rh5 {[%clk 0:00:13]} 88. Kg2 {[%clk 0:00:07]}  f4 {[%clk 0:00:14]} 89. exf4 {[%clk 0:00:06]}  Rxd5 {[%clk 0:00:14]} 90. Re4 {[%clk 0:00:03]}  Kf6 {[%clk 0:00:14]} 91. Kg3 {[%clk 0:00:03]}  Kf5 {[%clk 0:00:14]} 92. Re3 {[%clk 0:00:03]}  Rd2 {[%clk 0:00:11]} 93. Re5+ {[%clk 0:00:03]}  Kf6 {[%clk 0:00:12]} 94. Ra5 {[%clk 0:00:02]}  Rc2 {[%clk 0:00:10]} 95. Ra6+ {[%clk 0:00:02]}  Kf5 {[%clk 0:00:10]} 96. Ra5+ {[%clk 0:00:03]}  Kf6 {[%clk 0:00:10]} 97. Rg5 {[%clk 0:00:04]}  Rc3+ {[%clk 0:00:06]} 98. Kxg4 {[%clk 0:00:04]}  Rc2 {[%clk 0:00:06]} 99. Kf3 {[%clk 0:00:04]}  Rc3+ {[%clk 0:00:06]} 100. Kg2 {[%clk 0:00:05]}  Rc4 {[%clk 0:00:07]} 101. Kg3 {[%clk 0:00:05]}  Rc3+ {[%clk 0:00:07]} 102. f3 {[%clk 0:00:05]}  Rc1 {[%clk 0:00:08]} 103. Ra5 {[%clk 0:00:05]}  Rg1+ {[%clk 0:00:08]} 104. Kf2 {[%clk 0:00:05]}  Rh1 {[%clk 0:00:09]} 105. Kg2 {[%clk 0:00:05]}  Rd1 {[%clk 0:00:08]} 106. f5 {[%clk 0:00:03]}  Rc1 {[%clk 0:00:07]} 107. Kg3 {[%clk 0:00:03]}  Rc4 {[%clk 0:00:07]} 108. Rb5 {[%clk 0:00:03]}  Rd4 {[%clk 0:00:06]} 109. Kh3 {[%clk 0:00:02]}  Rf4 {[%clk 0:00:06]} 110. Kg3 {[%clk 0:00:03]}  Rxf5 {[%clk 0:00:06]} 111. Rxf5+ {[%clk 0:00:03]}  Kxf5 {[%clk 0:00:07]} 112. f4 {[%clk 0:00:03]}  Kf6 {[%clk 0:00:08]} 113. Kf3 {[%clk 0:00:04]}  Kg6 {[%clk 0:00:08]} 114. Ke3 {[%clk 0:00:05]}  Kf6 {[%clk 0:00:09]} 115. Ke4 {[%clk 0:00:05]}  Ke6 {[%clk 0:00:09]} 116. f5+ {[%clk 0:00:06]}  Kf6 {[%clk 0:00:10]} 117. Kf4 {[%clk 0:00:07]}  Kf7 {[%clk 0:00:10]} 118. Ke5 {[%clk 0:00:07]}  Ke7 {[%clk 0:00:11]} 119. f6+ {[%clk 0:00:08]}  Kf7 {[%clk 0:00:11]} 120. Kf5 {[%clk 0:00:09]}  Kf8 {[%clk 0:00:12]} 121. Kg4 {[%clk 0:00:09]}  Kf7 {[%clk 0:00:12]} 122. Kg5 {[%clk 0:00:10]}  Kf8 {[%clk 0:00:11]} 123. Kf5 {[%clk 0:00:11]}  Kf7 {[%clk 0:00:12]} 124. Ke5 {[%clk 0:00:11]}  Kf8 {[%clk 0:00:12]} 125. Ke4 {[%clk 0:00:12]}  Kf7 {[%clk 0:00:12]} 126. Kf5 {[%clk 0:00:13]}  Kf8 {[%clk 0:00:12]} 127. Ke6 {[%clk 0:00:14]}  Ke8 {[%clk 0:00:13]} 128. f7+ {[%clk 0:00:15]}  Kf8 {[%clk 0:00:13]} 129. Kf6 {[%clk 0:00:16]} 1/2-1/2


[Site "https://www.chess.com"]

[Event "Titled Tuesday Blitz February 22 Early 2022"]
[White "Tomiello, Mateus Costamilan"]
[Black "Maltsevskaya, Aleksandra"]
[WhiteFideId "22701958"]
[BlackFideId "24174041"]
[WhiteElo "1975"]
[BlackElo "2283"]
[Result "0-1"]
[Round "07"]
[TimeControl "180+1"]
[Date "2022.02.22"]
[WhiteClock "0:00:10"]
[BlackClock "0:00:14"]

1. e4 {[%clk 0:03:00]}  c5 {[%clk 0:02:59]} 2. Nf3 {[%clk 0:02:59]}  e6 {[%clk 0:03:00]} 3. d4 {[%clk 0:02:56]}  cxd4 {[%clk 0:03:01]} 4. Nxd4 {[%clk 0:02:56]}  Nc6 {[%clk 0:03:02]} 5. Nc3 {[%clk 0:02:55]}  Nf6 {[%clk 0:03:02]} 6. Ndb5 {[%clk 0:02:49]}  Bc5 {[%clk 0:03:02]} 7. Nd6+ {[%clk 0:02:48]}  Ke7 {[%clk 0:03:02]} 8. Nxc8+ {[%clk 0:02:46]}  Rxc8 {[%clk 0:03:03]} 9. Bd3 {[%clk 0:02:47]}  Qc7 {[%clk 0:03:02]} 10. O-O {[%clk 0:02:43]}  h5 {[%clk 0:03:02]} 11. g3 {[%clk 0:02:41]}  h4 {[%clk 0:03:01]} 12. Bf4 {[%clk 0:02:40]}  Ne5 {[%clk 0:02:51]} 13. Nb5 {[%clk 0:02:26]}  Qb8 {[%clk 0:02:51]} 14. c3 {[%clk 0:02:16]}  hxg3 {[%clk 0:02:50]} 15. hxg3 {[%clk 0:02:15]}  Nh5 {[%clk 0:02:30]} 16. Bxe5 {[%clk 0:01:34]}  Qxe5 {[%clk 0:02:31]} 17. Kg2 {[%clk 0:01:34]}  g5 {[%clk 0:01:52]} 18. Rh1 {[%clk 0:01:16]}  Nf6 {[%clk 0:01:32]} 19. Qe2 {[%clk 0:01:04]}  a6 {[%clk 0:00:57]} 20. Nd4 {[%clk 0:01:01]}  Bxd4 {[%clk 0:00:56]} 21. cxd4 {[%clk 0:01:02]}  Qxd4 {[%clk 0:00:57]} 22. e5 {[%clk 0:00:42]}  Ng4 {[%clk 0:00:47]} 23. Be4 {[%clk 0:00:18]}  Nxe5 {[%clk 0:00:34]} 24. Rhd1 {[%clk 0:00:16]}  Qb6 {[%clk 0:00:27]} 25. Rd2 {[%clk 0:00:16]}  Rh6 {[%clk 0:00:22]} 26. Rad1 {[%clk 0:00:15]}  Rch8 {[%clk 0:00:22]} 27. Kg1 {[%clk 0:00:16]}  g4 {[%clk 0:00:19]} 28. Bg2 {[%clk 0:00:15]}  f6 {[%clk 0:00:16]} 29. Qe4 {[%clk 0:00:13]}  Rh2 {[%clk 0:00:15]} 30. Qxb7 {[%clk 0:00:11]}  Rxg2+ {[%clk 0:00:16]} 31. Qxg2 {[%clk 0:00:11]}  Nf3+ {[%clk 0:00:16]} 32. Kf1 {[%clk 0:00:11]}  Rh2 {[%clk 0:00:15]} 33. Qxf3 {[%clk 0:00:09]}  gxf3 {[%clk 0:00:14]} 34. Rxd7+ {[%clk 0:00:10]}  Ke8 {[%clk 0:00:15]} 35. Kg1 {[%clk 0:00:10]}  Qxf2# {[%clk 0:00:14]} 0-1


[Site "https://www.chess.com"]

[Event "Titled Tuesday Blitz February 22 Early 2022"]
[White "Unat, Can Haktan"]
[Black "Sailer, Mike"]
[WhiteFideId "6398073"]
[BlackFideId "2012901"]
[WhiteElo "1980"]
[BlackElo "2109"]
[Result "0-1"]
[Round "07"]
[TimeControl "180+1"]
[Date "2022.02.22"]
[WhiteClock "0:01:56"]
[BlackClock "0:00:03"]

1. e4 {[%clk 0:03:00]}  d5 {[%clk 0:02:59]} 2. exd5 {[%clk 0:03:01]}  Qxd5 {[%clk 0:02:57]} 3. Nc3 {[%clk 0:03:01]}  Qd6 {[%clk 0:02:52]} 4. d4 {[%clk 0:03:00]}  Nf6 {[%clk 0:02:51]} 5. g3 {[%clk 0:03:01]}  c6 {[%clk 0:02:50]} 6. Bf4 {[%clk 0:03:01]}  Qd8 {[%clk 0:02:50]} 7. Bg2 {[%clk 0:03:01]}  Bf5 {[%clk 0:02:50]} 8. Nge2 {[%clk 0:03:02]}  e6 {[%clk 0:02:50]} 9. O-O {[%clk 0:03:02]}  Be7 {[%clk 0:02:51]} 10. Qd2 {[%clk 0:03:02]}  O-O {[%clk 0:02:51]} 11. f3 {[%clk 0:03:02]}  Nbd7 {[%clk 0:02:49]} 12. g4 {[%clk 0:03:03]}  Bg6 {[%clk 0:02:50]} 13. h4 {[%clk 0:03:03]}  h6 {[%clk 0:02:48]} 14. h5 {[%clk 0:03:02]}  Bh7 {[%clk 0:02:49]} 15. Ne4 {[%clk 0:03:02]}  Nb6 {[%clk 0:02:48]} 16. Bxh6 {[%clk 0:02:59]}  gxh6 {[%clk 0:02:47]} 17. Qxh6 {[%clk 0:03:00]}  Nxe4 {[%clk 0:02:38]} 18. Qc1 {[%clk 0:02:53]}  Nf6 {[%clk 0:02:14]} 19. c3 {[%clk 0:02:52]}  Nfd5 {[%clk 0:02:04]} 20. f4 {[%clk 0:02:43]}  Nc4 {[%clk 0:01:54]} 21. Bh3 {[%clk 0:02:30]}  Bd6 {[%clk 0:01:29]} 22. b3 {[%clk 0:02:25]}  Nce3 {[%clk 0:01:11]} 23. Rf3 {[%clk 0:02:26]}  Nc2 {[%clk 0:01:04]} 24. Rb1 {[%clk 0:02:09]}  Be4 {[%clk 0:01:03]} 25. Rg3 {[%clk 0:02:04]}  Qh4 {[%clk 0:00:52]} 26. Kh2 {[%clk 0:02:04]}  Nce3 {[%clk 0:00:39]} 27. Qg1 {[%clk 0:02:04]}  Nxf4 {[%clk 0:00:15]} 28. Re1 {[%clk 0:01:55]}  Nxe2 {[%clk 0:00:10]} 29. Rxe2 {[%clk 0:01:56]}  Nxg4# {[%clk 0:00:03]} 0-1


[Site "https://www.chess.com"]

[Event "Titled Tuesday Blitz February 22 Early 2022"]
[White "Van den Dikkenberg, Erik"]
[Black "Thomas, Anysia"]
[WhiteFideId "1005880"]
[BlackFideId "670472"]
[WhiteElo "2118"]
[BlackElo "2002"]
[Result "0-1"]
[Round "07"]
[TimeControl "180+1"]
[Date "2022.02.22"]
[WhiteClock "0:00:22"]
[BlackClock "0:01:27"]

1. e4 {[%clk 0:03:00]}  c5 {[%clk 0:02:59]} 2. Nc3 {[%clk 0:03:00]}  Nc6 {[%clk 0:02:56]} 3. Bb5 {[%clk 0:02:59]}  Nd4 {[%clk 0:02:56]} 4. Nf3 {[%clk 0:02:57]}  g6 {[%clk 0:02:56]} 5. O-O {[%clk 0:02:51]}  Bg7 {[%clk 0:02:55]} 6. d3 {[%clk 0:02:46]}  Nf6 {[%clk 0:02:51]} 7. e5 {[%clk 0:02:44]}  Ng4 {[%clk 0:02:33]} 8. Nxd4 {[%clk 0:02:40]}  cxd4 {[%clk 0:02:32]} 9. Qxg4 {[%clk 0:02:27]}  dxc3 {[%clk 0:02:32]} 10. bxc3 {[%clk 0:02:27]}  O-O {[%clk 0:02:33]} 11. d4 {[%clk 0:02:26]}  d6 {[%clk 0:02:31]} 12. Qe2 {[%clk 0:02:21]}  dxe5 {[%clk 0:02:31]} 13. dxe5 {[%clk 0:02:21]}  Qc7 {[%clk 0:02:29]} 14. Bf4 {[%clk 0:02:15]}  Qxc3 {[%clk 0:02:27]} 15. Rad1 {[%clk 0:02:10]}  Be6 {[%clk 0:02:22]} 16. Rd3 {[%clk 0:02:02]}  Qb4 {[%clk 0:02:16]} 17. c4 {[%clk 0:01:25]}  a6 {[%clk 0:02:08]} 18. Rb3 {[%clk 0:01:25]}  Qa5 {[%clk 0:01:51]} 19. Bd2 {[%clk 0:01:01]}  Qxa2 {[%clk 0:01:50]} 20. Rfb1 {[%clk 0:00:46]}  axb5 {[%clk 0:01:50]} 21. R3b2 {[%clk 0:00:44]}  Qxc4 {[%clk 0:01:41]} 22. Qf3 {[%clk 0:00:43]}  Rad8 {[%clk 0:01:36]} 23. Ba5 {[%clk 0:00:41]}  Rd3 {[%clk 0:01:34]} 24. Qxb7 {[%clk 0:00:39]}  Qd5 {[%clk 0:01:34]} 25. Qxd5 {[%clk 0:00:31]}  Rxd5 {[%clk 0:01:32]} 26. Rxb5 {[%clk 0:00:31]}  Ra8 {[%clk 0:01:31]} 27. Rb8+ {[%clk 0:00:24]}  Rxb8 {[%clk 0:01:27]} 28. Rxb8+ {[%clk 0:00:24]}  Bf8 {[%clk 0:01:27]} 29. Be1 {[%clk 0:00:22]}  Rd1 {[%clk 0:01:26]} 30. Kf1 {[%clk 0:00:22]}  Bc4+ {[%clk 0:01:26]} 31. Kg1 {[%clk 0:00:22]}  Rxe1# {[%clk 0:01:27]} 0-1


[Site "https://www.chess.com"]

[Event "Titled Tuesday Blitz February 22 Early 2022"]
[White "Yilmaz, Mustafa"]
[Black "Kobalia, Mikhail"]
[WhiteFideId "6302718"]
[BlackFideId "4119150"]
[WhiteElo "2568"]
[BlackElo "2667"]
[Result "0-1"]
[Round "07"]
[TimeControl "180+1"]
[Date "2022.02.22"]
[WhiteClock "0:00:03"]
[BlackClock "0:00:33"]

1. d4 {[%clk 0:03:00]}  d5 {[%clk 0:02:59]} 2. c4 {[%clk 0:03:01]}  c6 {[%clk 0:03:00]} 3. cxd5 {[%clk 0:03:02]}  cxd5 {[%clk 0:03:00]} 4. Bf4 {[%clk 0:03:02]}  e6 {[%clk 0:03:00]} 5. Nc3 {[%clk 0:03:01]}  Bd6 {[%clk 0:03:00]} 6. Bxd6 {[%clk 0:03:00]}  Qxd6 {[%clk 0:03:00]} 7. e3 {[%clk 0:03:00]}  Ne7 {[%clk 0:03:00]} 8. Bd3 {[%clk 0:03:00]}  Nbc6 {[%clk 0:03:00]} 9. Nf3 {[%clk 0:02:50]}  Bd7 {[%clk 0:02:59]} 10. O-O {[%clk 0:02:50]}  O-O {[%clk 0:02:59]} 11. Rc1 {[%clk 0:02:51]}  Rfc8 {[%clk 0:02:58]} 12. Qe2 {[%clk 0:02:45]}  Be8 {[%clk 0:02:57]} 13. a3 {[%clk 0:02:42]}  f6 {[%clk 0:02:56]} 14. b4 {[%clk 0:02:40]}  Bg6 {[%clk 0:02:53]} 15. e4 {[%clk 0:02:23]}  Bh5 {[%clk 0:02:48]} 16. exd5 {[%clk 0:01:59]}  Nxd4 {[%clk 0:02:38]} 17. Bxh7+ {[%clk 0:01:21]}  Kxh7 {[%clk 0:02:35]} 18. Qe4+ {[%clk 0:01:21]}  Ndf5 {[%clk 0:02:28]} 19. Nh4 {[%clk 0:01:11]}  Qe5 {[%clk 0:02:12]} 20. Qd3 {[%clk 0:01:10]}  Kg8 {[%clk 0:01:32]} 21. Nxf5 {[%clk 0:00:19]}  Qxf5 {[%clk 0:01:23]} 22. Qg3 {[%clk 0:00:15]}  Nxd5 {[%clk 0:01:18]} 23. Nb5 {[%clk 0:00:09]}  Qg6 {[%clk 0:01:15]} 24. Qd6 {[%clk 0:00:07]}  Re8 {[%clk 0:00:58]} 25. Qd7 {[%clk 0:00:04]}  Bf3 {[%clk 0:00:54]} 26. g3 {[%clk 0:00:04]}  Nf4 {[%clk 0:00:51]} 27. Rfe1 {[%clk 0:00:03]}  Rad8 {[%clk 0:00:35]} 28. Qc7 {[%clk 0:00:03]}  Nh3+ {[%clk 0:00:33]} 29. Kf1 {[%clk 0:00:03]}  Qd3+ {[%clk 0:00:33]} 0-1


[Site "https://www.chess.com"]

[Event "Titled Tuesday Blitz February 22 Early 2022"]
[White "Zemerov, Vladimir"]
[Black "Suarez Uriel, Adrian"]
[WhiteFideId "4111583"]
[BlackFideId "22230874"]
[WhiteElo "2277"]
[BlackElo "2316"]
[Result "1/2-1/2"]
[Round "07"]
[TimeControl "180+1"]
[Date "2022.02.22"]
[WhiteClock "0:01:15"]
[BlackClock "0:00:42"]

1. e4 {[%clk 0:03:00]}  c5 {[%clk 0:03:00]} 2. Nf3 {[%clk 0:03:00]}  Nc6 {[%clk 0:03:00]} 3. c3 {[%clk 0:03:00]}  Nf6 {[%clk 0:03:00]} 4. e5 {[%clk 0:02:59]}  Nd5 {[%clk 0:03:00]} 5. d4 {[%clk 0:02:59]}  cxd4 {[%clk 0:02:59]} 6. cxd4 {[%clk 0:02:57]}  d6 {[%clk 0:02:59]} 7. exd6 {[%clk 0:02:51]}  Qxd6 {[%clk 0:02:58]} 8. Nc3 {[%clk 0:02:51]}  Nxc3 {[%clk 0:02:58]} 9. bxc3 {[%clk 0:02:51]}  Bg4 {[%clk 0:02:56]} 10. Bb5 {[%clk 0:02:48]}  e6 {[%clk 0:02:54]} 11. O-O {[%clk 0:02:48]}  Be7 {[%clk 0:02:54]} 12. Qd3 {[%clk 0:02:47]}  O-O {[%clk 0:02:52]} 13. Bxc6 {[%clk 0:02:43]}  bxc6 {[%clk 0:02:52]} 14. Ne5 {[%clk 0:02:43]}  Bf5 {[%clk 0:02:52]} 15. Qf3 {[%clk 0:02:41]}  c5 {[%clk 0:02:52]} 16. Bf4 {[%clk 0:02:37]}  Qa6 {[%clk 0:02:45]} 17. Nc6 {[%clk 0:02:30]}  Bf6 {[%clk 0:02:41]} 18. Bd6 {[%clk 0:02:29]}  Rfc8 {[%clk 0:02:27]} 19. Ne7+ {[%clk 0:02:28]}  Bxe7 {[%clk 0:02:27]} 20. Bxe7 {[%clk 0:02:28]}  cxd4 {[%clk 0:02:27]} 21. cxd4 {[%clk 0:02:28]}  Rab8 {[%clk 0:02:18]} 22. Bc5 {[%clk 0:02:26]}  Rb2 {[%clk 0:02:16]} 23. a3 {[%clk 0:02:25]}  h6 {[%clk 0:02:15]} 24. Rac1 {[%clk 0:02:25]}  Rcb8 {[%clk 0:02:13]} 25. h3 {[%clk 0:02:24]}  Rd2 {[%clk 0:02:11]} 26. Qf4 {[%clk 0:02:19]}  Rbb2 {[%clk 0:02:10]} 27. Bb4 {[%clk 0:02:17]}  Re2 {[%clk 0:02:09]} 28. d5 {[%clk 0:02:10]}  Re4 {[%clk 0:02:04]} 29. Qb8+ {[%clk 0:02:10]}  Kh7 {[%clk 0:02:04]} 30. d6 {[%clk 0:02:10]}  e5 {[%clk 0:01:42]} 31. Qc7 {[%clk 0:01:57]}  Qb5 {[%clk 0:01:16]} 32. Rcd1 {[%clk 0:01:36]}  Qd7 {[%clk 0:01:09]} 33. Qxd7 {[%clk 0:01:35]}  Bxd7 {[%clk 0:01:09]} 34. Rfe1 {[%clk 0:01:32]}  Rxe1+ {[%clk 0:01:08]} 35. Rxe1 {[%clk 0:01:32]}  f6 {[%clk 0:01:08]} 36. Rc1 {[%clk 0:01:33]}  a5 {[%clk 0:00:58]} 37. Bxa5 {[%clk 0:01:31]}  Rb5 {[%clk 0:00:58]} 38. Bb4 {[%clk 0:01:31]}  Rb7 {[%clk 0:00:57]} 39. Rc7 {[%clk 0:01:31]}  Rxc7 {[%clk 0:00:56]} 40. dxc7 {[%clk 0:01:31]}  g5 {[%clk 0:00:54]} 41. f3 {[%clk 0:01:30]}  Kg6 {[%clk 0:00:53]} 42. Kf2 {[%clk 0:01:30]}  Kf7 {[%clk 0:00:54]} 43. Ke3 {[%clk 0:01:30]}  Ke6 {[%clk 0:00:54]} 44. Kd3 {[%clk 0:01:30]}  Kd5 {[%clk 0:00:54]} 45. Kc3 {[%clk 0:01:28]}  f5 {[%clk 0:00:53]} 46. Be7 {[%clk 0:01:28]}  e4 {[%clk 0:00:51]} 47. fxe4+ {[%clk 0:01:27]}  fxe4 {[%clk 0:00:47]} 48. Bf8 {[%clk 0:01:26]}  h5 {[%clk 0:00:46]} 49. Bh6 {[%clk 0:01:26]}  g4 {[%clk 0:00:47]} 50. hxg4 {[%clk 0:01:27]}  hxg4 {[%clk 0:00:47]} 51. Bf4 {[%clk 0:01:27]}  Bc8 {[%clk 0:00:47]} 52. a4 {[%clk 0:01:25]}  Kc5 {[%clk 0:00:45]} 53. Be3+ {[%clk 0:01:24]}  Kd5 {[%clk 0:00:42]} 54. Kb4 {[%clk 0:01:23]}  Kc6 {[%clk 0:00:41]} 55. Bf4 {[%clk 0:01:22]}  e3 {[%clk 0:00:42]} 56. Kc3 {[%clk 0:01:21]}  e2 {[%clk 0:00:41]} 57. Kd2 {[%clk 0:01:21]}  Ba6 {[%clk 0:00:41]} 58. g3 {[%clk 0:01:19]}  Kd7 {[%clk 0:00:40]} 59. Ke1 {[%clk 0:01:19]}  Bc4 {[%clk 0:00:39]} 60. a5 {[%clk 0:01:18]}  Kc8 {[%clk 0:00:40]} 61. Kd2 {[%clk 0:01:15]}  Kb7 {[%clk 0:00:40]} 62. Be5 {[%clk 0:01:15]}  Ba6 {[%clk 0:00:40]} 63. Ke1 {[%clk 0:01:14]}  Bb5 {[%clk 0:00:40]} 64. Kd2 {[%clk 0:01:14]}  Kc8 {[%clk 0:00:40]} 65. Ke1 {[%clk 0:01:13]}  Kd7 {[%clk 0:00:41]} 66. Kd2 {[%clk 0:01:14]}  Ba6 {[%clk 0:00:41]} 67. Ke1 {[%clk 0:01:14]}  Bb5 {[%clk 0:00:41]} 68. Kd2 {[%clk 0:01:14]}  Ba6 {[%clk 0:00:42]} 69. Ke1 {[%clk 0:01:15]}  Bb5 {[%clk 0:00:42]} 1/2-1/2


[Site "https://www.chess.com"]

[Event "Titled Tuesday Blitz February 22 Early 2022"]
[White "Aaditya Dhingra"]
[Black "Martinez, Shawn"]
[WhiteFideId "25678191"]
[BlackFideId "2039770"]
[WhiteElo "1789"]
[BlackElo "2174"]
[Result "1-0"]
[Round "08"]
[TimeControl "180+1"]
[Date "2022.02.22"]
[WhiteClock "0:00:15"]
[BlackClock "0:00:19"]

1. Nf3 {[%clk 0:03:00]}  Nf6 {[%clk 0:02:55]} 2. c4 {[%clk 0:03:00]}  g6 {[%clk 0:02:55]} 3. b3 {[%clk 0:02:58]}  Bg7 {[%clk 0:02:55]} 4. Bb2 {[%clk 0:02:58]}  O-O {[%clk 0:02:56]} 5. g3 {[%clk 0:02:57]}  d6 {[%clk 0:02:56]} 6. Bg2 {[%clk 0:02:56]}  Nc6 {[%clk 0:02:55]} 7. O-O {[%clk 0:02:56]}  e5 {[%clk 0:02:55]} 8. d4 {[%clk 0:02:54]}  e4 {[%clk 0:02:38]} 9. Nfd2 {[%clk 0:02:51]}  Re8 {[%clk 0:02:37]} 10. d5 {[%clk 0:02:46]}  Nb4 {[%clk 0:02:26]} 11. a3 {[%clk 0:02:42]}  Na6 {[%clk 0:02:21]} 12. e3 {[%clk 0:02:24]}  Nc5 {[%clk 0:02:19]} 13. Ra2 {[%clk 0:02:17]}  h5 {[%clk 0:02:16]} 14. Nc3 {[%clk 0:02:09]}  Bf5 {[%clk 0:02:08]} 15. Ne2 {[%clk 0:02:05]}  Nd3 {[%clk 0:02:01]} 16. Bd4 {[%clk 0:02:00]}  Qd7 {[%clk 0:01:58]} 17. Nf4 {[%clk 0:01:57]}  Ne5 {[%clk 0:01:52]} 18. Rc2 {[%clk 0:01:50]}  Bg4 {[%clk 0:01:36]} 19. f3 {[%clk 0:01:42]}  exf3 {[%clk 0:01:33]} 20. Nxf3 {[%clk 0:01:42]}  Ne4 {[%clk 0:01:12]} 21. Qa1 {[%clk 0:01:16]}  Nxf3+ {[%clk 0:00:50]} 22. Bxf3 {[%clk 0:01:14]}  Bxd4 {[%clk 0:00:51]} 23. Qxd4 {[%clk 0:01:12]}  Ng5 {[%clk 0:00:47]} 24. Bg2 {[%clk 0:00:55]}  Re5 {[%clk 0:00:40]} 25. Nd3 {[%clk 0:00:49]}  Re7 {[%clk 0:00:38]} 26. h4 {[%clk 0:00:46]}  Nh7 {[%clk 0:00:35]} 27. Rcf2 {[%clk 0:00:45]}  Rae8 {[%clk 0:00:35]} 28. e4 {[%clk 0:00:45]}  f5 {[%clk 0:00:34]} 29. Nf4 {[%clk 0:00:37]}  Nf8 {[%clk 0:00:31]} 30. exf5 {[%clk 0:00:36]}  Bxf5 {[%clk 0:00:30]} 31. Nxh5 {[%clk 0:00:34]}  gxh5 {[%clk 0:00:22]} 32. Rxf5 {[%clk 0:00:32]}  Rg7 {[%clk 0:00:23]} 33. Qf4 {[%clk 0:00:19]}  Qe7 {[%clk 0:00:22]} 34. Rxh5 {[%clk 0:00:17]}  Qe3+ {[%clk 0:00:21]} 35. Kh2 {[%clk 0:00:16]}  Qxf4 {[%clk 0:00:19]} 36. Rxf4 {[%clk 0:00:16]}  Re3 {[%clk 0:00:19]} 37. Rhf5 {[%clk 0:00:16]}  Rexg3 {[%clk 0:00:19]} 38. Rxf8+ {[%clk 0:00:15]}  Kh7 {[%clk 0:00:19]} 39. Be4+ {[%clk 0:00:15]}  Kh6 {[%clk 0:00:19]} 40. Rh8+ {[%clk 0:00:15]} 1-0


[Site "https://www.chess.com"]